bitfinex/quotes_ETHUSD_20241231
["timestamp","ask_amount","ask_price","bid_price","bid_amount"]
[1735670022253,2.97186,3364.9,3364.1,0.7988]
[1735670022408,5.21382917,3365.1,3364.1,3.7988]
[1735670022839,3.81654159,3365.0,3364.1,3.7988]
[1735670023950,1.24604632,3364.8,3364.1,3.7988]
[1735670025048,2.78869353,3364.7,3364.1,3.7988]
[1735670026059,1.24604632,3364.6,3364.1,3.7988]
[1735670026257,1.24604632,3364.6,3364.1,0.7988]
[1735670026553,1.24604632,3364.6,3364.1,3.77129]
[1735670026724,1.24604632,3364.6,3364.1,0.7988]
[1735670027256,1.24604632,3364.6,3364.1,3.77129]
[1735670028151,1.24604632,3364.6,3364.1,1.175929]
[1735670028367,1.24604632,3364.6,3364.1,0.7988]
[1735670028660,1.24604632,3364.7,3364.3,2.97234]
[1735670028811,1.24604632,3364.7,3364.1,0.7988]
[1735670029218,1.24604632,3364.7,3364.6,3.77092]
[1735670029729,1.24604632,3364.7,3364.6,0.7988]
[1735670029929,1.24604632,3365.0,3364.3,2.97236]
[1735670030429,1.24604632,3365.0,3364.4,2.97228]
[1735670031267,1.24604632,3364.8,3364.4,2.97228]
[1735670031677,1.24604632,3364.8,3364.7,3.77083]
[1735670032535,2.78869353,3365.0,3364.7,3.77083]
[1735670034377,1.24604632,3365.0,3364.7,3.77083]
[1735670034884,1.24604632,3365.0,3364.9,2.97185]
[1735670035473,1.24604632,3365.1,3364.7,3.77082]
[1735670035869,1.24604632,3365.1,3364.7,3.74190677]
[1735670036375,2.27066585,3365.1,3364.7,0.76988677]
[1735670036573,1.24604632,3365.0,3364.7,0.76988677]
[1735670037641,1.24604632,3364.9,3364.7,0.76988677]
[1735670041377,1.24604632,3364.9,3364.8,2.97194]
[1735670041681,1.24604632,3364.9,3364.8,2.94304752]
[1735670043696,1.24604632,3365.0,3364.8,2.94304752]
[1735670044290,1.24604632,3365.0,3364.7,0.76988677]
[1735670044497,1.81460743,3365.0,3364.3,2.97233]
[1735670044692,1.24604632,3365.0,3364.4,2.97227]
[1735670044893,1.24604632,3365.1,3364.7,2.97202]
[1735670045067,1.24604632,3365.1,3364.8,3.74673]
[1735670045268,1.24604632,3365.1,3365.0,2.97176]
[1735670046006,1.24604632,3365.1,3364.8,0.7748]
[1735670046382,2.89691755,3365.2,3364.8,0.7748]
[1735670046383,1.24604632,3365.2,3364.8,0.7748]
[1735670046708,1.24604632,3365.2,3363.7,1.23084175]
[1735670046709,2.06750665,3365.2,3364.5,3.74695]
[1735670047137,2.06750665,3365.2,3364.5,0.7748]
[1735670047424,1.24604632,3365.2,3364.5,0.7748]
[1735670047570,1.24604632,3364.9,3364.8,3.74674]
[1735670047776,1.24604632,3364.9,3364.8,7.29674]
[1735670049011,1.24604632,3365.4,3365.3,2.9715]
[1735670049211,1.24604632,3365.4,3365.3,3.7463]
[1735670050681,2.27389438,3365.6,3365.3,3.7463]
[1735670051687,1.24604632,3365.7,3365.3,3.7463]
[1735670051886,1.24604632,3365.7,3365.3,0.7748]
[1735670052203,1.24604632,3365.7,3365.4,2.9714]
[1735670052797,1.24604632,3365.6,3365.3,0.7748]
[1735670053113,1.24604632,3365.6,3365.3,3.74623]
[1735670053326,1.24604632,3365.6,3365.3,4.47775452]
[1735670053691,1.24604632,3365.6,3365.3,3.74623]
[1735670054102,1.24604632,3365.6,3365.3,0.7748]
[1735670054305,1.24604632,3365.7,3365.5,2.97132]
[1735670054631,1.24604632,3365.7,3365.3,3.74625]
[1735670054793,1.24604632,3365.7,3364.8,3.0]
[1735670054794,1.24604632,3365.7,3365.1,3.72254]
[1735670054991,1.24604632,3365.7,3365.1,0.7509]
[1735670055187,1.24604632,3365.7,3365.1,4.423183]
[1735670055972,1.24604632,3365.7,3365.4,2.97135]
[1735670056334,1.24604632,3365.7,3365.6,3.72213]
[1735670056833,1.24604632,3365.8,3365.7,2.97115]
[1735670058337,1.24604632,3365.9,3365.8,2.97106]
[1735670059202,1.24604632,3366.0,3365.9,2.97097]
[1735670060935,1.24604632,3366.0,3365.8,0.66932]
[1735670060936,1.24604632,3366.3,3366.1,2.97072]
[1735670061422,1.24604632,3366.3,3365.8,0.66932]
[1735670061623,1.24604632,3366.3,3366.2,2.9707]
[1735670062477,2.27389438,3366.5,3366.2,2.9707]
[1735670064023,1.24604632,3366.8,3366.6,2.97028]
[1735670064949,2.27389438,3366.9,3366.6,2.97028]
[1735670065712,2.27389438,3366.9,3366.4,2.9705]
[1735670066238,2.27389438,3366.9,3366.5,2.9704]
[1735670066397,2.52899223,3367.3,3366.5,2.9704]
[1735670066398,1.24604632,3367.2,3366.5,2.9704]
[1735670066596,2.10780093,3367.2,3366.5,2.9704]
[1735670067032,2.10780093,3367.2,3366.3,3.77504]
[1735670067240,2.10780093,3367.2,3365.1,3.893873]
[1735670067241,2.15623994,3367.0,3366.1,2.97077]
[1735670067439,0.0289,3366.9,3366.1,2.97077]
[1735670067735,0.49731084,3366.8,3365.9,3.75842]
[1735670067937,0.0289,3366.7,3365.9,2.97092]
[1735670068238,5.15540994,3366.7,3365.7,2.97111]
[1735670068538,5.15540994,3366.7,3365.6,0.7875]
[1735670068539,0.0289,3366.3,3365.6,0.7875]
[1735670068752,0.0289,3366.3,3365.7,2.97114]
[1735670068913,0.0289,3366.3,3365.6,0.7875]
[1735670069427,0.0289,3366.3,3365.6,3.7587]
[1735670069826,0.0289,3366.3,3365.7,2.97114]
[1735670070748,0.0289,3366.3,3365.6,0.7875]
[1735670071331,0.0289,3366.3,3365.7,2.97114]
[1735670071603,1.24604632,3366.4,3366.2,2.97063]
[1735670071799,1.24604632,3366.4,3366.3,2.97062]
[1735670072728,1.24604632,3366.4,3366.1,2.97076]
[1735670072939,0.0289,3366.6,3365.9,3.75842]
[1735670073247,0.0289,3366.6,3366.0,2.97088]
[1735670073466,0.64031058,3366.6,3365.8,2.97103]
[1735670073644,3.61067058,3366.6,3365.6,3.7587]
[1735670073848,2.18513994,3366.5,3365.3,3.75892]
[1735670074019,2.97089,3366.0,3365.1,2.97164]
[1735670074216,0.0289,3366.1,3365.0,0.7875]
[1735670074396,3.00002,3365.8,3364.8,2.97192]
[1735670074622,0.0289,3365.8,3364.8,0.55]
[1735670074840,0.0289,3365.8,3365.3,2.97142]
[1735670075048,0.0289,3365.8,3365.1,2.97164]
[1735670075213,0.0289,3366.3,3365.4,2.97133]
[1735670075412,0.89730089,3366.2,3365.4,2.97133]
[1735670075822,1.24604632,3365.9,3365.4,2.97133]
[1735670076346,1.24604632,3365.9,3365.2,0.7875]
[1735670076539,1.24604632,3365.9,3365.6,2.97123]
[1735670077041,1.24604632,3365.9,3365.8,2.97106]
[1735670077408,1.24604632,3366.2,3365.9,2.97094]
[1735670077750,1.24604632,3366.2,3365.6,2.97116]
[1735670078457,1.24604632,3366.2,3365.4,2.97138]
[1735670078652,2.27513436,3366.2,3365.5,2.9713]
[1735670078850,2.98949675,3366.2,3365.5,2.9713]
[1735670079211,2.98949675,3366.2,3365.6,2.97122]
[1735670079955,2.27513436,3366.2,3365.4,3.0]
[1735670080185,3.81892271,3366.1,3365.6,2.9712]
[1735670081087,2.27513436,3366.2,3365.6,2.9712]
[1735670082059,1.24604632,3366.2,3365.6,2.9712]
[1735670082771,2.15623994,3365.9,3364.5,0.7866]
[1735670082974,0.0289,3365.6,3364.7,2.97198]
[1735670083169,0.0289,3365.6,3364.8,2.97186]
[1735670083961,0.0289,3365.6,3364.5,3.7866]
[1735670084285,0.54453299,3365.6,3364.5,1.16526]
[1735670084584,0.54453299,3365.6,3364.8,2.97193]
[1735670084785,3.81954888,3365.5,3364.8,2.97193]
[1735670086010,1.24604632,3365.4,3364.8,2.97193]
[1735670086685,1.24604632,3365.4,3364.8,0.55]
[1735670086885,1.24604632,3365.4,3364.9,0.57062399]
[1735670087098,1.24604632,3365.4,3365.1,2.97166]
[1735670087525,2.27513436,3365.5,3365.1,2.97166]
[1735670087676,2.27513436,3365.5,3364.9,0.57062399]
[1735670088009,2.27513436,3365.5,3365.0,2.97175]
[1735670088300,2.27513436,3365.5,3364.7,0.55]
[1735670088301,2.27513436,3365.5,3364.9,2.97184]
[1735670088885,1.24604632,3365.5,3364.9,2.97184]
[1735670089060,1.24604632,3365.5,3364.6,2.97206]
[1735670089695,1.24604632,3365.5,3364.7,2.97202]
[1735670089898,0.31440158,3365.4,3364.7,2.97202]
[1735670090099,1.24604632,3365.2,3364.7,2.97202]
[1735670090319,1.24604632,3365.2,3364.5,0.7866]
[1735670090801,0.0289,3365.1,3364.4,0.55]
[1735670090966,0.0289,3365.1,3364.4,3.52225]
[1735670091192,0.0289,3365.1,3364.4,4.253135]
[1735670091705,0.0289,3365.1,3364.4,0.730885]
[1735670092039,0.0289,3365.1,3364.4,2.97222]
[1735670092323,0.0289,3365.1,3364.3,2.97238]
[1735670092804,3.82048611,3365.0,3364.3,2.97238]
[1735670093011,0.0289,3364.9,3363.3,0.7866]
[1735670093303,2.18513994,3364.7,3363.4,0.41736817]
[1735670093509,2.15623994,3364.7,3363.3,0.7866]
[1735670093714,0.0289,3364.6,3363.3,3.75986]
[1735670094069,0.0289,3364.6,3363.4,3.0]
[1735670094287,1.24604632,3364.4,3363.3,3.75986]
[1735670094503,2.18513994,3364.3,3363.3,0.7866]
[1735670094735,0.0289,3364.1,3363.0,0.7866]
[1735670095093,0.0289,3364.1,3363.0,3.7866]
[1735670095830,0.0289,3363.9,3362.3,0.7866]
[1735670096036,0.0289,3363.9,3362.5,3.0]
[1735670096175,0.0289,3363.9,3362.4,2.97402]
[1735670096379,0.0289,3363.7,3362.4,1.01220217]
[1735670096649,2.18513994,3363.7,3362.4,1.01220217]
[1735670096816,2.18513994,3363.7,3362.3,3.76074]
[1735670096817,2.18513994,3363.7,3362.3,0.7866]
[1735670096995,0.0289,3363.6,3362.3,3.7866]
[1735670098129,1.05798804,3363.6,3362.3,3.76072]
[1735670098662,1.05798804,3363.6,3362.1,2.97431]
[1735670098663,0.0289,3363.5,3362.1,2.97431]
[1735670098866,0.0289,3363.5,3362.0,0.7845]
[1735670099026,0.44602743,3363.4,3362.2,0.55]
[1735670099222,0.0289,3363.5,3362.2,0.55]
[1735670100537,0.0289,3363.5,3362.3,2.97414]
[1735670101237,0.0289,3363.5,3362.4,2.97405]
[1735670101851,0.0289,3363.5,3362.2,2.70623994]
[1735670102071,0.0289,3363.5,3362.2,0.55]
[1735670102221,0.24741399,3363.5,3362.2,3.38472133]
[1735670102432,0.0289,3363.5,3362.9,0.55]
[1735670102646,0.0289,3363.8,3363.1,2.15623994]
[1735670102834,1.24604632,3363.9,3363.4,2.15623994]
[1735670103168,0.0289,3364.1,3363.5,3.52307]
[1735670103495,0.0289,3364.1,3363.6,0.64638099]
[1735670103894,1.24604632,3364.2,3364.0,2.97262]
[1735670104682,0.0289,3364.6,3364.0,2.97262]
[1735670105374,0.0289,3364.6,3364.0,3.75712]
[1735670105578,0.0289,3364.9,3364.0,3.75712]
[1735670105732,0.0289,3364.9,3364.0,2.97262]
[1735670106683,0.0289,3364.9,3364.0,3.61895599]
[1735670107191,0.0289,3364.9,3364.0,0.64633599]
[1735670107981,0.0289,3364.9,3364.0,3.61897599]
[1735670108338,0.0289,3364.9,3364.0,0.64633599]
[1735670112141,5.15699994,3364.9,3363.7,0.7845]
[1735670112461,0.0289,3364.8,3363.4,0.8093]
[1735670112979,0.0289,3364.8,3363.4,3.78247]
[1735670114579,0.0289,3364.8,3363.5,0.55]
[1735670114800,0.0289,3364.8,3363.8,3.52275]
[1735670115089,0.0289,3364.8,3363.7,3.0]
[1735670115378,0.0289,3364.8,3363.5,3.55]
[1735670115740,0.0289,3364.8,3363.5,6.52308]
[1735670115936,0.45357563,3364.8,3363.5,3.55]
[1735670116164,0.45357563,3364.8,3363.5,3.52306]
[1735670116365,0.45357563,3364.8,3363.5,0.55]
[1735670116677,0.0289,3364.8,3363.5,2.973]
[1735670119996,0.0289,3364.8,3363.6,2.973]
[1735670122401,0.0289,3364.8,3363.7,0.55]
[1735670122620,0.0289,3364.8,3363.9,0.55]
[1735670122916,0.0289,3364.8,3364.0,2.97262]
[1735670123097,0.64330158,3364.8,3364.0,2.97262]
[1735670123459,0.64330158,3364.8,3363.8,2.97277]
[1735670124087,0.64330158,3364.8,3363.7,0.8093]
[1735670124257,0.0289,3364.7,3363.6,2.97292]
[1735670125400,0.0289,3364.7,3363.8,2.97278]
[1735670125569,0.60885415,3364.7,3363.9,2.97273]
[1735670125899,0.0289,3364.7,3363.9,2.97273]
[1735670126477,0.0289,3364.7,3363.7,2.97288]
[1735670127181,0.0289,3364.7,3363.4,2.96553994]
[1735670127182,0.0289,3364.7,3363.5,2.97307]
[1735670127405,0.0289,3364.7,3363.4,3.78246]
[1735670128414,3.0289,3364.5,3363.2,2.97334]
[1735670128765,2.15623994,3364.3,3363.0,2.97351]
[1735670128896,0.0289,3364.2,3363.0,2.97351]
[1735670130026,3.0289,3364.2,3362.8,3.74482]
[1735670130318,0.0289,3363.8,3362.5,0.7712]
[1735670130523,0.0289,3363.6,3362.3,2.97412]
[1735670130672,0.0289,3363.5,3362.1,2.97429]
[1735670130870,3.0,3363.1,3361.9,2.00204175]
[1735670131074,0.0289,3363.0,3361.9,1.23084175]
[1735670131274,0.81585099,3362.9,3361.9,1.23084175]
[1735670131585,0.81585099,3362.9,3361.6,3.23288351]
[1735670131586,0.0289,3362.8,3361.6,0.7712]
[1735670131969,0.0289,3362.8,3361.6,2.92743994]
[1735670132217,0.0289,3362.8,3362.0,2.9744]
[1735670132592,0.0289,3362.8,3362.1,0.04158329]
[1735670133126,1.02918265,3362.7,3362.1,0.04158329]
[1735670133977,1.02918265,3362.7,3361.8,2.97455]
[1735670134206,1.02918265,3362.7,3362.2,0.04174196]
[1735670134407,0.0289,3362.8,3362.2,0.04174196]
[1735670134717,0.0289,3362.8,3362.3,0.04170156]
[1735670135126,0.0289,3362.8,3361.6,2.92743994]
[1735670135332,0.0289,3362.8,3361.6,0.7712]
[1735670135475,0.75375163,3362.8,3361.7,0.71654401]
[1735670135975,0.75375163,3362.8,3361.8,2.97458]
[1735670136240,0.0289,3362.8,3361.8,2.97458]
[1735670136485,0.0289,3362.8,3361.9,0.04186319]
[1735670138744,2.15623994,3362.6,3361.9,0.04186319]
[1735670138967,0.0289,3362.2,3361.9,0.04186319]
[1735670139278,0.0289,3362.2,3361.0,2.9753]
[1735670139436,0.21851399,3362.1,3361.0,2.9753]
[1735670139624,0.0289,3362.0,3361.1,0.04090168]
[1735670139831,0.0289,3362.0,3360.9,0.7712]
[1735670140028,0.0289,3362.0,3361.0,2.97525]
[1735670140234,0.0289,3362.0,3361.0,3.01668332]
[1735670140903,0.0289,3362.0,3361.0,0.04143332]
[1735670141177,0.53779239,3362.0,3360.8,2.97547]
[1735670141327,0.0289,3361.9,3360.8,2.97547]
[1735670141535,3.0,3361.9,3360.9,0.04030413]
[1735670141738,0.0289,3361.7,3360.9,0.04030413]
[1735670141967,0.0289,3361.7,3360.4,2.97575]
[1735670142147,0.0289,3361.6,3361.0,0.03790375]
[1735670142377,0.0289,3361.6,3360.4,2.97575]
[1735670142566,0.0289,3361.6,3361.1,0.03786332]
[1735670143184,0.0289,3361.6,3361.2,0.03782289]
[1735670143574,0.0289,3361.6,3360.2,0.7894]
[1735670143828,0.0289,3361.6,3361.3,0.03778247]
[1735670143949,0.0289,3361.6,3360.3,2.97588]
[1735670144151,2.97487,3361.5,3360.2,3.7654]
[1735670144362,0.0289,3361.4,3360.4,0.03814639]
[1735670144601,0.0289,3361.4,3360.3,3.0]
[1735670144602,0.0289,3361.4,3360.3,3.03818684]
[1735670144781,0.0289,3361.3,3360.5,0.03810594]
[1735670144977,0.0289,3361.3,3360.4,0.03922186]
[1735670145306,0.0289,3361.3,3360.6,0.03914097]
[1735670145435,0.0289,3361.3,3360.7,0.03910053]
[1735670145807,0.0289,3361.3,3360.1,2.97609]
[1735670145945,0.0289,3361.1,3360.8,0.03906009]
[1735670146139,0.0289,3361.1,3360.1,2.97609]
[1735670146553,0.0289,3361.1,3360.2,3.01530275]
[1735670149265,0.0289,3361.1,3360.2,0.03930275]
[1735670149464,0.0289,3361.1,3360.0,2.97615]
[1735670149707,0.0289,3361.1,3360.1,3.01544321]
[1735670150365,0.0289,3361.1,3360.1,0.03934321]
[1735670150772,0.0289,3361.1,3359.6,3.8065]
[1735670151080,0.0289,3361.1,3359.9,2.97627]
[1735670151253,0.0289,3361.1,3360.0,0.03938366]
[1735670151447,0.0289,3360.9,3360.0,0.03938366]
[1735670153190,0.0289,3360.9,3360.0,3.01555366]
[1735670153889,0.0289,3360.9,3360.0,0.03938366]
[1735670154097,0.0289,3360.9,3359.8,2.97636]
[1735670154392,0.0289,3360.9,3359.9,0.03942412]
[1735670155187,0.0289,3360.7,3359.9,0.03942412]
[1735670155389,0.0289,3360.4,3359.4,2.97668]
[1735670155701,0.0289,3360.4,3359.2,0.8065]
[1735670155702,0.0289,3360.4,3359.3,3.55]
[1735670155866,0.0289,3360.4,3359.4,0.0389176]
[1735670156209,0.0289,3360.4,3359.7,2.97643]
[1735670156357,0.0289,3360.4,3359.7,3.27796476]
[1735670156559,0.0289,3360.4,3359.8,0.03875573]
[1735670156799,0.0289,3360.4,3359.9,2.97627]
[1735670156966,0.0289,3360.4,3359.8,0.03875573]
[1735670157165,0.0289,3360.4,3360.0,3.01485482]
[1735670157404,0.0289,3360.4,3359.9,0.03871527]
[1735670157557,0.0289,3360.4,3359.8,2.97633]
[1735670157558,0.0289,3360.4,3360.1,0.03863436]
[1735670157762,0.0289,3360.4,3360.0,0.03867482]
[1735670157965,0.0289,3360.4,3360.2,0.03859391]
[1735670158161,0.0289,3360.4,3360.1,0.03863436]
[1735670158386,0.0289,3360.4,3360.3,0.03855346]
[1735670158605,0.0289,3360.4,3360.2,0.03859391]
[1735670158860,0.0289,3360.4,3359.3,2.97678]
[1735670158965,0.0289,3360.4,3360.3,0.03855346]
[1735670159185,0.0289,3360.4,3359.3,2.97681]
[1735670159366,0.0289,3360.4,3359.2,0.8065]
[1735670159605,0.0289,3360.4,3359.4,0.0389176]
[1735670159806,0.0289,3360.4,3359.4,2.97665]
[1735670159974,0.0289,3360.4,3359.5,0.42171907]
[1735670160371,0.0289,3360.3,3359.5,0.03950826]
[1735670160908,0.0289,3360.3,3359.2,2.97686]
[1735670161113,0.0289,3360.3,3359.3,0.0395892]
[1735670161278,0.0289,3360.3,3359.3,2.97678]
[1735670161472,0.0289,3360.3,3359.9,2.97627]
[1735670161791,0.0289,3361.3,3360.0,0.03930595]
[1735670161962,0.0289,3361.3,3360.1,0.7676]
[1735670162169,0.0289,3361.3,3360.3,2.97585]
[1735670162619,0.0289,3361.3,3360.4,0.03914414]
[1735670164688,0.0289,3361.3,3360.8,2.97548]
[1735670164887,0.0289,3361.3,3360.9,0.03894194]
[1735670165088,0.0289,3361.3,3360.5,2.97567]
[1735670165284,0.0289,3361.3,3360.6,0.03906325]
[1735670165519,0.0289,3361.3,3360.6,0.34053658]
[1735670165714,0.0289,3361.6,3360.7,0.8118]
[1735670165884,0.0289,3361.6,3361.1,2.9752]
[1735670166087,0.0289,3361.6,3361.2,0.03951801]
[1735670166487,0.0289,3362.4,3360.7,0.8118]
[1735670166686,0.0289,3362.1,3360.9,3.0]
[1735670166943,0.0289,3362.1,3361.0,0.58942615]
[1735670167145,0.0289,3362.1,3361.4,2.97494]
[1735670167487,0.0289,3362.1,3361.5,3.01385812]
[1735670169657,0.0289,3362.1,3361.5,0.03901812]
[1735670170010,0.0289,3362.1,3361.4,2.97494]
[1735670170205,0.0289,3362.1,3361.6,0.03877847]
[1735670170523,0.0289,3362.1,3361.7,0.03873806]
[1735670170719,0.0289,3362.1,3361.4,2.97494]
[1735670170920,2.15623994,3361.9,3361.5,0.03881889]
[1735670171127,0.24452399,3361.8,3360.3,2.97591]
[1735670171467,2.15623994,3361.6,3360.4,0.03684299]
[1735670171643,0.0289,3361.7,3360.7,3.0]
[1735670171812,0.0289,3361.7,3360.6,2.97564]
[1735670172011,0.0289,3361.7,3360.8,0.03668122]
[1735670172211,0.56643039,3361.7,3360.7,3.03672166]
[1735670172540,0.56643039,3361.7,3360.8,0.03668122]
[1735670173464,0.0289,3361.6,3360.8,0.03668122]
[1735670173806,0.0289,3361.6,3360.4,2.97581]
[1735670174012,0.0289,3361.6,3360.3,0.8118]
[1735670174013,0.0289,3361.6,3360.9,0.03664079]
[1735670174264,0.37566744,3361.5,3360.6,3.0]
[1735670174470,0.37566744,3361.5,3361.0,0.03660036]
[1735670174647,0.37566744,3361.5,3360.6,2.97562]
[1735670175136,0.37566744,3361.5,3360.7,0.03672166]
[1735670175813,0.0289,3361.6,3360.7,0.03672166]
[1735670176272,0.0289,3361.6,3360.8,2.97548]
[1735670176415,0.0289,3361.6,3360.7,0.03672166]
[1735670176620,0.0289,3361.6,3361.1,2.9752]
[1735670176861,0.0289,3361.6,3360.8,0.03668122]
[1735670177033,0.34330158,3361.6,3361.2,0.0365195]
[1735670177238,0.34330158,3361.6,3360.8,2.97546]
[1735670177429,0.34330158,3361.6,3361.3,0.03685737]
[1735670177630,0.34330158,3361.6,3360.7,3.0]
[1735670177842,0.34330158,3361.6,3361.4,0.03681694]
[1735670178174,0.34330158,3361.6,3360.7,2.9755]
[1735670178373,0.34330158,3361.6,3360.5,0.8301]
[1735670178374,0.0289,3361.5,3360.5,2.97572]
[1735670178581,0.0289,3361.5,3360.8,0.03705952]
[1735670178898,0.33179816,3361.4,3360.5,2.97572]
[1735670179085,0.33179816,3361.4,3360.9,0.03701909]
[1735670179220,0.0289,3361.3,3360.3,2.9759]
[1735670179422,0.0289,3361.3,3361.0,0.03697865]
[1735670179668,0.0289,3361.3,3360.1,3.0]
[1735670179836,0.0289,3361.3,3361.1,0.03693822]
[1735670180190,0.0289,3361.3,3360.2,0.7653967]
[1735670180575,0.0289,3361.3,3360.3,0.03726174]
[1735670181073,0.0289,3361.3,3360.5,2.97566]
[1735670181592,0.0289,3361.3,3360.6,0.0371404]
[1735670182122,0.0289,3361.3,3360.6,2.97564]
[1735670182331,0.0289,3361.3,3360.7,0.03783673]
[1735670182537,1.05925198,3361.2,3360.2,0.7653967]
[1735670182844,1.05925198,3361.2,3360.5,2.97574]
[1735670183227,1.05925198,3361.2,3360.6,0.03787717]
[1735670183629,1.05925198,3361.2,3360.6,3.01350717]
[1735670183823,0.0289,3361.2,3360.6,3.01350717]
[1735670184365,0.0289,3361.2,3360.7,2.97556]
[1735670184564,0.0289,3361.2,3360.7,3.01339673]
[1735670185076,1.27494632,3361.2,3360.7,3.01339673]
[1735670186570,2.57776185,3361.1,3360.7,3.01339673]
[1735670186721,2.57776185,3361.1,3360.7,0.03783673]
[1735670186922,2.57776185,3361.1,3361.0,2.9753]
[1735670187124,2.57776185,3361.1,3361.0,3.01299551]
[1735670187874,1.24604632,3361.5,3361.4,2.97495]
[1735670188273,1.24604632,3361.5,3361.4,3.01227137]
[1735670189383,1.03110474,3361.8,3361.4,0.03732137]
[1735670189675,1.03110474,3361.8,3361.7,2.97468]
[1735670189882,1.03110474,3361.8,3361.7,3.569625]
[1735670190179,1.03110474,3361.8,3361.7,3.60661937]
[1735670190727,1.24604632,3362.2,3362.1,2.97433]
[1735670191129,1.24604632,3362.2,3362.1,3.00972519]
[1735670191841,1.24604632,3362.6,3362.4,2.97406]
[1735670192042,1.24604632,3362.6,3362.5,2.97397]
[1735670192259,1.24604632,3362.6,3362.5,3.80250358]
[1735670193492,1.27494632,3363.3,3362.5,3.80250358]
[1735670193640,1.27494632,3363.3,3362.8,2.97371]
[1735670194203,1.27494632,3363.3,3362.9,3.00757381]
[1735670194391,1.94238253,3363.3,3362.9,0.03396381]
[1735670194890,1.94238253,3363.3,3362.8,2.9737]
[1735670195232,1.27494632,3363.7,3363.3,2.97323]
[1735670195437,1.24604632,3363.7,3363.5,2.97302]
[1735670195850,1.24604632,3363.7,3363.6,3.00640921]
[1735670196070,1.24604632,3363.7,3363.6,0.03340921]
[1735670196441,0.31440158,3363.7,3363.0,2.9735]
[1735670196678,0.0289,3364.0,3363.6,0.03338932]
[1735670196988,0.0289,3364.0,3362.9,3.0]
[1735670196989,0.0289,3364.0,3362.9,2.97358]
[1735670197299,0.0289,3364.0,3363.7,0.03334895]
[1735670197441,2.97267,3364.0,3362.7,3.76279]
[1735670197638,0.0289,3363.9,3362.7,3.76279]
[1735670197838,0.0289,3363.7,3362.8,0.03371235]
[1735670198099,0.0289,3363.7,3362.4,3.789]
[1735670198241,0.0289,3363.7,3362.9,0.03367196]
[1735670198441,2.15623994,3363.5,3362.5,2.97394]
[1735670198659,0.0289,3363.1,3363.0,0.03363158]
[1735670198841,0.54473599,3363.1,3362.2,3.0]
[1735670199039,0.54473599,3363.1,3363.0,0.03312766]
[1735670199375,0.0289,3363.1,3362.0,3.0]
[1735670199540,0.0289,3363.1,3363.0,0.03312766]
[1735670199891,0.0289,3363.1,3362.0,3.0]
[1735670199892,0.0289,3363.1,3362.6,2.97387]
[1735670200382,0.0289,3363.1,3362.7,0.03324882]
[1735670201587,0.0289,3363.5,3362.7,0.03324882]
[1735670201804,0.85892558,3363.5,3362.9,2.97362]
[1735670202182,0.0289,3363.5,3363.0,0.03343927]
[1735670202887,0.0289,3363.5,3363.0,3.00693927]
[1735670203071,0.0289,3363.5,3363.1,2.97343]
[1735670203261,0.0289,3363.8,3363.3,2.97322]
[1735670203443,0.0289,3363.8,3363.2,0.0333585]
[1735670203793,0.0289,3363.8,3363.4,2.97317]
[1735670203994,0.0289,3363.8,3363.3,0.03331812]
[1735670204194,0.0289,3364.3,3363.6,2.97296]
[1735670204357,0.34311863,3364.2,3363.4,0.03327775]
[1735670204561,2.15623994,3364.1,3363.4,0.03327775]
[1735670205192,2.15623994,3364.1,3363.3,2.97326]
[1735670205418,2.15623994,3364.1,3363.5,0.03323738]
[1735670205599,2.15623994,3364.1,3363.0,0.8051]
[1735670205600,2.15623994,3364.1,3363.4,2.97317]
[1735670205801,0.34311863,3364.2,3363.6,0.0318775]
[1735670206001,0.34311863,3364.2,3363.4,2.97317]
[1735670206298,2.15623994,3364.0,3363.7,0.03184376]
[1735670206505,0.0289,3363.9,3363.2,2.97333]
[1735670206699,0.28172586,3363.9,3363.8,0.0318034]
[1735670206886,3.25445586,3363.9,3363.8,0.0318034]
[1735670207085,2.973,3363.6,3362.1,3.77936]
[1735670207311,2.15623994,3363.4,3362.4,2.97404]
[1735670207512,0.51581399,3363.3,3362.4,2.97404]
[1735670207709,0.51581399,3363.3,3362.5,0.03232835]
[1735670208067,0.51581399,3363.3,3362.5,3.00626835]
[1735670208380,2.15623994,3363.1,3362.5,0.03232835]
[1735670208579,2.15623994,3363.1,3362.1,2.97428]
[1735670208795,2.15623994,3363.1,3362.6,0.03228795]
[1735670209113,0.0289,3363.0,3362.1,2.97428]
[1735670209259,0.0289,3363.0,3362.7,0.03224756]
[1735670209459,0.51585099,3362.9,3362.1,2.97428]
[1735670209685,0.51585099,3362.9,3362.8,0.03220717]
[1735670209912,0.51585099,3362.9,3362.1,2.97428]
[1735670210095,0.0289,3363.0,3362.2,2.97423]
[1735670210284,0.0289,3363.0,3362.2,3.00667954]
[1735670212113,2.15623994,3362.8,3362.2,0.03244954]
[1735670212412,0.0289,3362.7,3361.6,2.97476]
[1735670212592,0.0289,3362.7,3362.3,0.03307218]
[1735670212920,0.54477799,3362.7,3361.8,2.97458]
[1735670213110,0.0289,3362.7,3361.8,2.97458]
[1735670213415,0.0289,3362.7,3361.9,3.00772381]
[1735670213710,0.0289,3362.7,3362.0,2.97439]
[1735670214130,0.0289,3362.7,3362.1,0.03337851]
[1735670214417,0.0289,3362.7,3361.8,2.97459]
[1735670214418,0.0289,3362.7,3361.5,5.97481]
[1735670214567,2.15623994,3362.5,3362.2,0.03333811]
[1735670214768,2.15623994,3362.5,3361.4,0.8051]
[1735670214972,2.15623994,3362.5,3361.6,3.0]
[1735670215177,0.0289,3362.7,3361.8,2.97459]
[1735670215396,0.0289,3362.7,3361.9,0.0334527]
[1735670215610,0.54477799,3362.7,3361.9,0.0334527]
[1735670216369,0.0289,3362.7,3362.0,2.97441]
[1735670216681,0.0289,3362.7,3362.1,0.03337188]
[1735670217000,0.0289,3362.7,3362.2,0.03333148]
[1735670217180,0.0289,3362.7,3361.8,3.0]
[1735670217386,0.0289,3362.7,3361.9,0.0334527]
[1735670217699,0.51588399,3362.6,3361.9,0.0334527]
[1735670221063,0.0289,3362.7,3361.9,0.0334527]